bitfinex/quotes_ETHUSD_20250611
["timestamp","ask_amount","ask_price","bid_price","bid_amount"]
[1749605948135,0.3593,2779.6,2779.1,10.319]
[1749605948311,0.3593,2779.4,2779.2,1.004]
[1749605948508,4.1163,2779.3,2779.2,1.004]
[1749605948699,0.3593,2779.3,2779.2,1.004]
[1749605948901,9.48941176,2779.9,2779.2,1.004]
[1749605948902,0.3993,2779.9,2779.2,1.004]
[1749605949122,0.04,2779.9,2779.3,1.0319]
[1749605949321,3.797,2779.9,2779.3,11.0319]
[1749605949520,3.797,2779.9,2779.3,1.0319]
[1749605949837,3.797,2779.9,2779.4,10.0]
[1749605950312,0.04,2779.9,2779.6,23.48271]
[1749605950511,0.04,2779.9,2779.7,3.63273091]
[1749605951019,0.04,2779.9,2779.8,1.003]
[1749605951814,0.04,2779.9,2779.8,1.35611154]
[1749605953241,0.04,2780.9,2779.8,1.35611154]
[1749605953242,3.756,2780.4,2780.0,23.48271]
[1749605953402,0.04,2780.9,2780.2,33.48271]
[1749605953603,0.04,2780.9,2780.4,23.48271]
[1749605954356,0.04,2780.9,2780.3,10.0]
[1749605954357,0.04,2780.9,2780.7,23.48271]
[1749605954651,0.04,2780.9,2780.8,1.003]
[1749605955825,0.04,2780.9,2780.8,3.1033]
[1749605956149,0.04,2780.9,2780.8,1.003]
[1749605958015,0.04,2780.9,2780.8,24.48571]
[1749605960911,0.04,2780.9,2780.8,34.48571]
[1749605961821,0.04,2781.9,2781.1,10.0]
[1749605962047,0.04,2781.9,2781.3,33.48271]
[1749605962249,0.04,2781.9,2781.5,23.48271]
[1749605962420,0.04,2781.9,2781.4,2.61475991]
[1749605962421,0.04,2781.9,2781.6,1.003]
[1749605963756,0.04,2781.9,2781.6,1.358635]
[1749605963964,0.04,2781.9,2781.6,0.355635]
[1749605964269,0.04,2781.9,2781.2,9.309]
[1749605964270,9.44941176,2781.8,2781.7,1.003]
[1749605964555,10.50500294,2781.8,2781.7,1.003]
[1749605966523,14.25800294,2781.8,2781.7,1.003]
[1749605971163,1.05559118,2781.8,2781.7,1.003]
[1749605971323,3.753,2781.8,2781.7,1.003]
[1749605971727,4.8465,2781.8,2781.2,9.309]
[1749605971962,9.44941176,2781.6,2781.3,1.003]
[1749605972139,10.87900294,2781.6,2781.3,1.003]
[1749605972774,3.753,2781.5,2781.3,1.003]
[1749605975288,3.753,2781.5,2781.4,1.003]
[1749605975623,3.753,2781.5,2781.2,9.309]
[1749605975867,3.753,2781.5,2781.4,1.003]
[1749605976040,5.43254118,2781.5,2781.4,1.003]
[1749605978974,3.752,2781.5,2781.4,1.003]
[1749605979564,3.752,2781.5,2781.4,1.002]
[1749605980862,10.3593,2781.8,2781.4,1.002]
[1749605981170,3.752,2781.7,2781.4,1.002]
[1749605983359,13.20141176,2781.7,2781.2,9.309]
[1749605983561,21.13161176,2781.3,2781.2,9.309]
[1749605983783,25.73575059,2781.3,2781.2,10.311]
[1749605983982,26.09505059,2781.3,2781.2,10.311]
[1749605984169,27.51026661,2781.3,2781.2,10.311]
[1749605984374,27.51026661,2781.3,2779.3,7.34997786]
[1749605984375,9.44941176,2780.8,2779.3,27.08065512]
[1749605984586,9.44941176,2780.8,2779.5,23.48271]
[1749605985077,9.44941176,2780.8,2779.7,23.48271]
[1749605985479,3.752,2780.7,2779.7,23.48271]
[1749605985680,3.752,2780.7,2779.7,24.39715691]
[1749605985881,3.752,2780.7,2779.8,3.63273091]
[1749605986282,1.1322,2780.6,2779.8,3.63273091]
[1749605986659,0.3993,2780.9,2779.8,3.63273091]
[1749605986861,3.752,2780.8,2779.9,23.48271]
[1749605987750,3.752,2780.8,2780.0,10.0]
[1749605987951,3.752,2780.8,2780.1,1.0]
[1749605988175,3.752,2780.8,2780.2,1.002]
[1749605994490,3.752,2780.8,2780.2,10.0]
[1749605994697,3.752,2780.8,2780.3,1.002]
[1749605996473,1.0943,2780.7,2780.4,1.002]
[1749605996700,0.48463,2780.6,2780.4,1.002]
[1749605997096,0.48463,2780.6,2780.0,10.0]
[1749605997294,1.0943,2780.7,2780.1,1.002]
[1749605998405,1.0943,2780.7,2779.7,0.91848717]
[1749605998406,11.0943,2780.7,2780.2,1.002]
[1749606000378,10.0,2780.5,2779.8,19.108]
[1749606000613,15.69694118,2780.4,2780.3,1.002]
[1749606001713,11.0871,2780.3,2779.7,2.254]
[1749606001899,11.0871,2780.3,2779.8,1.002]
[1749606002103,1.0871,2780.3,2779.8,1.002]
[1749606002492,10.53651176,2780.3,2779.6,9.307]
[1749606002697,1.0871,2780.1,2779.7,1.002]
[1749606002893,10.0,2779.9,2779.7,1.002]
[1749606003218,1.0871,2779.8,2779.7,1.002]
[1749606004022,13.752,2779.8,2779.7,1.002]
[1749606006218,24.68750176,2779.8,2779.7,1.002]
[1749606006432,25.74150176,2779.8,2779.7,1.002]
[1749606007432,10.0,2779.7,2779.6,9.307]
[1749606007630,10.0,2779.7,2779.6,10.309]
[1749606007802,3.752,2779.7,2779.6,10.309]
[1749606010735,13.752,2779.7,2779.6,10.309]
[1749606011702,15.2326,2779.7,2779.6,10.309]
[1749606013431,11.4806,2779.7,2779.6,10.309]
[1749606013731,15.2326,2779.7,2779.6,10.309]
[1749606015436,3.752,2779.7,2779.6,10.309]
[1749606017028,3.752,2779.7,2779.6,10.308]
[1749606017556,3.752,2779.7,2779.6,1.001]
[1749606018730,1.1464,2780.1,2779.6,1.001]
[1749606018934,1.0691,2780.4,2779.6,1.001]
[1749606019106,10.0,2780.2,2779.6,1.001]
[1749606019638,1.0691,2780.6,2779.6,1.001]
[1749606019935,10.0,2780.4,2779.6,1.001]
[1749606020101,1.64601,2780.6,2779.7,23.48271]
[1749606020301,10.0,2780.4,2779.7,23.48271]
[1749606020528,1.64601,2780.6,2779.7,23.48271]
[1749606020737,10.0,2780.4,2779.7,23.48271]
[1749606020934,10.0,2780.8,2779.9,10.0]
[1749606021135,0.04,2780.9,2779.8,2.448371]
[1749606021136,1.1648,2780.9,2779.8,27.08006734]
[1749606021322,3.752,2780.7,2779.9,23.48271]
[1749606021523,3.752,2780.7,2779.8,23.48271]
[1749606021726,0.04,2780.9,2780.0,33.48271]
[1749606021936,10.0,2780.8,2780.0,33.48271]
[1749606022111,3.792,2780.9,2780.0,23.48271]
[1749606022299,10.0,2780.8,2780.0,20.467]
[1749606022918,10.0,2780.8,2780.0,20.004]
[1749606023117,10.0,2780.8,2780.2,33.48271]
[1749606023321,10.0,2780.8,2780.2,23.48271]
[1749606023732,10.0,2780.8,2780.2,16.35]
[1749606024243,1.0659,2780.7,2780.2,16.35]
[1749606024536,10.0,2780.5,2780.3,1.001]
[1749606024736,3.751,2780.5,2780.4,1.001]
[1749606025107,3.751,2780.5,2780.4,10.312]
[1749606026046,0.04,2780.9,2780.4,11.3432]
[1749606026509,10.0,2780.7,2780.4,11.3432]
[1749606027850,3.751,2780.7,2780.4,11.3432]
[1749606028725,0.04,2780.9,2780.4,11.3432]
[1749606028937,3.791,2780.9,2780.4,11.3432]
[1749606029325,3.791,2780.9,2780.5,1.13432]
[1749606029662,3.791,2780.9,2780.6,33.48271]
[1749606029663,0.04,2780.9,2780.6,33.48271]
[1749606029855,3.791,2780.9,2780.6,23.48271]
[1749606030059,0.04,2780.9,2780.6,23.48271]
[1749606030245,0.04,2780.9,2780.6,3.492903]
[1749606030562,0.04,2780.9,2780.5,23.48271]
[1749606030966,0.04,2780.9,2780.6,23.48271]
[1749606031129,0.04,2780.9,2780.5,23.48271]
[1749606031326,0.04,2780.9,2780.5,23.84640708]
[1749606031521,0.04,2780.9,2780.6,23.48271]
[1749606031861,0.04,2780.9,2780.8,23.48271]
[1749606032179,7.77,2782.5,2780.8,23.48271]
[1749606032180,9.80871176,2782.7,2781.0,33.48271]
[1749606032328,3.75,2782.1,2781.2,33.48271]
[1749606032527,10.0,2782.0,2781.4,33.48271]
[1749606032836,10.0,2782.0,2781.5,1.3303]
[1749606033161,10.0,2782.0,2781.4,23.48271]
[1749606033763,10.0,2782.3,2781.5,23.48271]
[1749606034258,3.75,2782.1,2781.4,23.48271]
[1749606035324,1.1408,2781.8,2781.5,1.001]
[1749606035531,4.8908,2782.1,2781.6,1.001]
[1749606035726,1.1408,2782.1,2781.7,23.48271]
[1749606035931,3.749,2782.0,2781.7,23.48271]
[1749606036334,3.749,2782.0,2781.2,0.87793166]
[1749606036335,10.04,2781.9,2781.2,0.87793166]
[1749606036536,10.04,2781.9,2781.8,1.001]
[1749606037576,0.04,2781.9,2781.8,1.001]
[1749606037768,1.1478,2782.8,2781.8,24.48371]
[1749606037970,0.04,2782.9,2782.0,23.48271]
[1749606038535,10.04,2782.9,2782.0,23.48271]
[1749606039369,10.04,2782.9,2782.0,27.07721722]
[1749606039536,0.04,2782.9,2782.1,23.48271]
[1749606039737,0.04,2782.9,2782.3,23.48271]
[1749606039936,0.04,2782.9,2782.3,23.84859691]
[1749606040163,0.04,2782.9,2782.4,23.48271]
[1749606040381,0.04,2782.9,2782.5,0.999]
[1749606040546,0.04,2782.9,2782.6,23.48271]
[1749606040736,0.04,2782.9,2782.7,2.448171]
[1749606040937,0.04,2782.9,2782.6,23.48271]
[1749606041134,0.04,2782.9,2782.7,0.999]
[1749606042964,0.04,2782.9,2782.8,0.999]
[1749606049184,9.44941176,2782.5,2781.3,10.41566513]
[1749606049352,3.747,2782.4,2781.5,23.48271]
[1749606049548,3.747,2782.4,2781.8,10.0]
[1749606049770,3.747,2782.4,2781.6,2.448171]
[1749606049971,3.747,2782.4,2781.9,0.999]
[1749606050175,3.747,2782.4,2782.0,0.999]
[1749606050379,3.747,2782.4,2782.1,0.999]
[1749606050590,9.44941176,2782.2,2781.3,0.359973]
[1749606050772,3.746,2782.1,2781.5,23.48271]
[1749606051092,3.746,2782.1,2781.5,12.448171]
[1749606051298,3.746,2782.1,2781.5,10.0]
[1749606052685,3.746,2782.1,2781.3,10.0]
[1749606052857,3.746,2782.1,2781.6,0.999]
[1749606054198,9.44941176,2781.9,2781.7,0.999]
[1749606054493,9.44941176,2781.9,2781.8,0.999]
[1749606054686,10.87779294,2781.9,2781.8,0.999]
[1749606055190,1.42838118,2781.9,2781.8,10.302]
[1749606055392,1.0884,2782.0,2781.8,10.302]
[1749606055593,9.80871176,2782.3,2781.8,10.302]
[1749606055594,3.746,2781.9,2781.8,10.302]
[1749606056491,4.8344,2781.9,2781.8,10.302]
[1749606057784,3.746,2781.9,2781.8,10.302]
[1749606061961,3.746,2781.9,2781.8,20.302]
[1749606062661,3.746,2781.9,2781.8,0.999]
[1749606063595,1.0884,2782.2,2781.8,0.999]
[1749606063795,3.746,2782.1,2781.8,0.999]
[1749606065089,3.746,2782.1,2781.9,9.304]
[1749606066273,9.80871176,2782.3,2781.9,9.304]
[1749606066490,4.7,2782.4,2781.9,10.3343]
[1749606066795,0.04,2782.9,2782.1,23.48271]
[1749606067273,0.04,2782.9,2782.2,23.48271]
[1749606067479,0.04,2782.9,2782.1,27.07707707]
[1749606067694,0.04,2782.9,2782.2,23.48271]
[1749606067901,0.04,2782.9,2782.4,23.48271]
[1749606068291,0.04,2782.9,2782.5,0.998]
[1749606068491,0.04,2782.9,2782.6,33.48271]
[1749606068693,0.04,2782.9,2782.5,0.998]
[1749606076525,1.1118,2782.8,2781.9,9.304]
[1749606076728,1.1118,2782.8,2782.0,0.998]
[1749606076729,2.54652118,2782.8,2782.0,0.998]
[1749606076895,1.1118,2782.8,2782.1,23.48271]
[1749606077089,1.1118,2782.8,2782.0,0.998]
[1749606077319,1.1118,2782.8,2782.2,10.0]
[1749606077522,2.54652118,2782.8,2782.2,10.0]
[1749606078903,2.54652118,2782.8,2782.0,10.998]
[1749606079303,2.54652118,2782.8,2782.2,10.0]
[1749606080023,3.744,2782.7,2782.2,10.0]
[1749606080391,3.744,2782.7,2782.0,10.998]
[1749606080595,13.19341176,2782.7,2782.1,0.998]
[1749606080823,1.1269,2782.6,2782.0,10.0]
[1749606081130,1.1269,2782.6,2782.2,0.998]
[1749606081421,3.744,2782.5,2782.2,0.998]
[1749606081822,3.744,2782.5,2782.3,0.998]
[1749606085431,6.18299039,2782.4,2782.3,0.998]
[1749606086004,1.1642,2782.3,2782.0,10.0]
[1749606086221,0.58448972,2782.2,2782.1,0.998]
[1749606086394,1.1642,2782.3,2782.1,0.998]
[1749606087393,3.744,2782.5,2782.0,10.0]
[1749606087394,1.1642,2782.1,2782.0,10.0]
[1749606087593,4.9082,2782.1,2782.0,10.998]
[1749606089828,1.1642,2782.1,2782.0,10.998]
[1749606090020,4.9082,2782.1,2782.0,10.998]
[1749606093604,11.09119039,2782.1,2782.0,10.998]
[1749606100745,7.34719039,2782.1,2782.0,10.998]
[1749606100919,1.1931,2782.3,2782.0,10.998]
[1749606101120,3.744,2782.1,2782.0,10.998]
[1749606101512,9.92699039,2782.1,2782.0,10.998]
[1749606101708,11.03899943,2782.1,2782.0,10.998]
[1749606101915,1.1931,2781.9,2781.0,0.061]
[1749606102211,6.18299039,2781.2,2781.1,10.301]
[1749606102407,9.92599039,2781.2,2781.1,10.301]
[1749606102686,11.11909039,2781.2,2781.1,10.301]
[1749606103072,1.1931,2781.7,2781.1,10.301]
[1749606103215,1.1931,2781.7,2781.1,10.65804156]
[1749606103545,3.743,2781.6,2781.2,10.3867242]
[1749606104254,3.743,2781.6,2781.2,33.48271]
[1749606104449,3.743,2781.6,2781.4,10.0]
[1749606104757,3.743,2781.6,2781.2,10.0]
[1749606104956,3.743,2781.6,2781.4,10.0]
[1749606106349,12.43539039,2782.0,2781.5,0.997]
[1749606106350,6.18299039,2781.8,2781.5,0.997]
[1749606106543,3.743,2781.7,2781.5,0.997]
[1749606106715,6.18299039,2781.6,2781.5,0.997]
[1749606106916,6.18299039,2781.6,2781.1,9.66104156]
[1749606106917,7.39469039,2781.6,2781.1,9.66104156]
[1749606107113,6.18299039,2781.4,2781.2,10.0]
[1749606107454,3.743,2781.3,2781.2,10.0]
[1749606107651,3.743,2781.3,2781.2,10.997]
[1749606109850,3.743,2781.3,2781.2,0.997]
[1749606110873,3.743,2781.3,2781.1,9.304]
[1749606111071,3.743,2781.3,2781.2,0.997]
[1749606111072,10.91858943,2781.3,2781.2,0.997]
[1749606112677,12.02818943,2781.3,2781.2,0.997]
[1749606112880,12.38748943,2781.3,2781.2,0.997]
[1749606114281,12.38748943,2781.3,2781.1,9.304]
[1749606114445,12.38748943,2781.3,2781.2,0.997]
[1749606115261,12.93748943,2781.3,2781.2,0.997]
[1749606119003,17.63748943,2781.3,2781.2,0.997]
[1749606119670,0.55,2781.2,2781.1,9.304]
[1749606119869,3.37388894,2781.2,2781.1,10.301]
[1749606120172,13.29987933,2781.2,2781.1,10.301]
[1749606120709,4.7,2781.3,2781.1,10.301]
[1749606120994,3.743,2781.2,2781.1,10.301]
[1749606121169,6.18299039,2781.2,2781.1,10.301]
[1749606121367,9.92599039,2781.2,2781.1,10.301]
[1749606121964,11.64079039,2781.2,2781.1,10.301]
[1749606122158,23.67009943,2781.2,2781.1,10.301]
[1749606122363,23.67009943,2781.2,2781.1,9.304]
[1749606122570,23.67009943,2781.2,2781.1,10.301]
[1749606122801,28.37009943,2781.2,2781.1,10.301]
[1749606124025,34.55308982,2781.2,2781.1,10.301]
[1749606124225,1.1648,2780.2,2780.1,0.04]
[1749606124545,12.00009039,2780.2,2780.1,0.04]
[1749606124710,12.00009039,2780.2,2780.1,1.037]
[1749606125089,12.00009039,2780.2,2780.1,10.344]
[1749606126140,22.00009039,2780.2,2780.1,10.344]
[1749606126442,24.20009943,2780.2,2780.1,10.344]
[1749606127500,18.01710904,2780.2,2780.1,10.344]
[1749606127739,23.84079943,2780.2,2780.1,10.344]
[1749606128832,23.78559943,2780.2,2780.1,10.344]
[1749606130540,23.78559943,2780.2,2779.1,0.40157472]
[1749606130541,10.55,2780.1,2779.1,0.04]
[1749606130748,10.55,2780.1,2779.2,0.996]
[1749606130749,6.73299039,2779.3,2779.2,0.996]
[1749606130926,10.47699039,2779.3,2779.2,0.996]
[1749606131319,11.65509039,2779.3,2779.2,0.996]
[1749606131523,12.82059943,2779.3,2779.2,0.996]
[1749606133817,12.37855994,2780.1,2779.2,0.996]
[1749606133818,1.1678,2779.8,2779.2,0.996]
[1749606134129,9.92699039,2779.7,2779.2,0.996]
[1749606134323,6.18299039,2779.5,2779.2,0.996]
[1749606134525,3.744,2779.4,2779.2,0.996]
[1749606135260,3.744,2779.4,2779.3,9.312]
[1749606135435,10.91968943,2779.4,2779.3,9.312]
[1749606135643,11.46968943,2779.4,2779.3,9.312]
[1749606136958,17.34338943,2779.4,2779.3,9.312]
[1749606137160,17.34338943,2779.4,2779.3,10.309]
[1749606140466,17.34338943,2779.4,2778.1,0.04]
[1749606140467,0.55,2779.1,2778.1,0.04]
[1749606140682,0.55,2778.5,2778.2,0.997]
[1749606140854,3.744,2778.4,2778.2,0.997]
[1749606141025,7.30219039,2778.7,2778.2,0.997]
[1749606141227,3.744,2778.6,2778.2,1.0097]
[1749606141460,1.1192,2778.7,2778.2,1.0097]
[1749606141626,5.05514716,2779.4,2778.2,1.0097]
[1749606141627,1.1192,2779.0,2778.2,1.0097]
[1749606141836,3.745,2778.9,2778.3,0.42775754]
[1749606142027,9.46849955,2779.5,2778.4,0.0127]
[1749606142338,3.745,2779.4,2778.9,0.0127]
[1749606142537,1.0994,2780.0,2779.0,1.99827]
[1749606142538,3.745,2779.3,2779.0,1.99827]
[1749606142743,3.745,2779.3,2779.0,0.997]
[1749606143463,0.3593,2779.6,2779.0,0.997]
[1749606143659,4.1033,2779.5,2779.0,0.997]
[1749606143859,3.744,2779.4,2779.1,0.997]
[1749606144061,0.3593,2779.3,2778.9,0.0127]
[1749606144237,3.744,2779.2,2778.9,0.0127]
[1749606144439,0.3593,2779.1,2779.0,0.997]
[1749606144735,0.3593,2779.1,2778.1,10.04]
[1749606144736,0.3593,2779.1,2778.3,10.0]
[1749606145046,3.744,2779.0,2778.6,10.0]
[1749606145462,3.744,2779.0,2778.7,0.997]
[1749606146138,3.744,2779.0,2778.7,1.0097]
[1749606146365,3.744,2778.9,2778.7,1.0097]
[1749606147439,3.744,2778.9,2778.8,0.997]
[1749606149276,5.0593,2779.1,2778.8,0.997]
[1749606149277,4.7,2779.1,2778.8,0.997]
[1749606149455,3.744,2779.1,2778.9,0.0127]
[1749606149655,0.3593,2779.6,2778.9,0.0127]
[1749606149974,3.744,2779.5,2779.0,1.11367]
[1749606150274,3.744,2779.5,2779.0,0.0127]
[1749606152291,3.744,2779.5,2778.7,10.0]
[1749606152292,3.744,2779.5,2779.1,0.997]
[1749606154765,3.744,2779.5,2778.5,10.0]
[1749606154978,9.46849955,2779.4,2778.7,10.0]
[1749606155175,9.46849955,2779.4,2778.5,10.0]
[1749606155380,10.71630824,2779.4,2778.6,0.997]
[1749606155784,1.1029,2779.3,2778.7,0.997]
[1749606156158,1.1029,2779.3,2778.6,10.0]
[1749606156360,1.1029,2779.3,2778.7,0.997]
[1749606156875,9.46849955,2779.1,2778.8,0.997]
[1749606157076,4.69084996,2779.0,2778.8,0.997]
[1749606157975,3.744,2779.0,2778.8,0.997]
[1749606158508,3.744,2779.0,2778.9,0.996]
[1749606159367,1.1029,2779.3,2778.9,0.996]
[1749606159571,3.744,2779.2,2778.9,0.996]
[1749606161121,4.7,2779.4,2779.0,0.996]
[1749606161323,10.95759955,2779.8,2779.0,0.996]
[1749606161524,1.1298,2779.8,2779.0,0.996]
[1749606161825,3.744,2779.7,2779.0,0.996]
[1749606162822,0.3593,2779.6,2779.0,0.996]
[1749606163411,0.3593,2779.4,2779.0,0.996]
[1749606163610,0.3593,2779.4,2779.1,1.0996]
[1749606163814,3.743,2779.5,2779.1,1.0996]
[1749606165290,3.743,2779.5,2779.2,0.996]
[1749606165291,0.3593,2779.4,2779.2,0.996]
[1749606165503,0.3593,2779.4,2779.3,0.996]
[1749606165704,1.82766996,2779.4,2779.3,0.996]
[1749606167089,1.82766996,2779.4,2778.4,9.313]
[1749606167286,5.0593,2779.4,2778.6,10.0]
[1749606167519,5.0593,2779.4,2778.5,10.996]
[1749606167520,5.0593,2779.4,2778.5,10.0]
[1749606167685,5.0593,2779.4,2778.6,0.996]
[1749606168325,5.0593,2779.4,2778.7,10.0]
[1749606169410,6.05082,2779.4,2778.6,0.996]
[1749606169614,6.05082,2779.4,2778.7,0.996]
[1749606170524,0.3593,2779.3,2778.7,10.996]
[1749606170711,4.1023,2779.3,2778.7,10.996]
[1749606172316,4.1023,2779.3,2778.8,0.996]
[1749606172629,13.57079955,2779.3,2778.8,0.996]
[1749606172790,0.3593,2779.1,2778.8,0.996]
[1749606172991,1.5232,2779.1,2778.7,10.0]
[1749606173192,1.5232,2779.1,2778.8,0.996]
[1749606173713,1.5232,2779.1,2778.5,10.0]
[1749606173917,1.5232,2779.1,2778.9,0.996]
[1749606174122,0.694328,2779.0,2778.9,0.996]
[1749606174298,11.32672755,2779.0,2778.9,0.996]
[1749606176021,15.06972755,2779.0,2778.9,0.996]
[1749606176827,0.3593,2778.8,2778.4,9.313]
[1749606177135,0.3593,2778.6,2778.5,0.996]
[1749606180322,0.3593,2778.6,2778.5,10.311]
[1749606181044,11.4597,2778.6,2778.5,10.311]
[1749606181242,13.44987,2778.6,2778.5,10.311]
[1749606181541,3.44987,2778.6,2778.5,10.311]
[1749606181843,1.4597,2778.6,2778.5,10.311]
[1749606182246,4.7,2778.8,2778.5,10.311]
[1749606182448,3.742,2778.6,2778.5,9.315]
[1749606182746,4.1013,2778.6,2778.5,10.311]
[1749606183805,0.3593,2778.6,2778.5,10.311]
[1749606184006,4.1023,2778.6,2778.5,10.311]
[1749606184961,4.7,2778.8,2778.5,10.311]
[1749606185254,3.742,2778.7,2778.5,11.3421]
[1749606186835,3.742,2778.7,2777.8,4.15705754]
[1749606186836,0.3593,2778.6,2777.8,0.41505754]
[1749606187051,3.742,2778.7,2777.1,9.455]
[1749606187052,9.46849955,2777.9,2777.1,9.455]
[1749606187213,0.3593,2777.7,2777.2,0.996]
[1749606187414,3.742,2777.6,2777.2,11.9415]
[1749606188438,3.742,2777.6,2777.2,10.9455]
[1749606188640,3.742,2777.6,2777.3,0.995]
[1749606189650,0.3593,2777.8,2777.3,0.995]
[1749606189945,0.3593,2777.8,2777.4,1.19405]
[1749606190122,9.46849955,2778.5,2777.6,10.0]
[1749606190123,3.743,2778.0,2777.6,10.0]
[1749606190320,3.743,2778.0,2777.4,1.19405]
[1749606190538,0.3593,2778.7,2777.6,10.0]
[1749606190741,0.3593,2778.5,2777.8,10.0]
[1749606191363,3.743,2778.6,2777.4,1.19405]
[1749606191364,0.3593,2778.3,2777.9,0.995]
[1749606192323,0.3593,2778.3,2778.0,0.995]
[1749606192529,10.63909955,2778.4,2777.1,9.81180524]
[1749606192530,0.3593,2778.2,2778.1,0.995]
[1749606193165,0.3593,2778.2,2777.2,10.0]
[1749606193166,0.3593,2778.1,2777.2,23.48271]
[1749606193462,0.3593,2778.1,2777.3,4.32445152]
[1749606194477,0.3593,2778.1,2777.1,9.81180524]
[1749606194478,9.46849955,2777.4,2777.1,0.14]
[1749606194678,9.46849955,2777.4,2777.2,10.311]
[1749606194679,4.1053,2777.3,2777.2,10.311]
[1749606196375,13.57379955,2777.3,2777.2,9.316]
[1749606196533,14.10047955,2777.3,2777.2,10.311]
[1749606197152,1.1916,2777.2,2777.1,0.14]
[1749606197355,11.01939955,2777.2,2777.1,1.135]
[1749606197543,15.25909955,2777.2,2777.1,10.452]
[1749606197749,14.89979955,2777.2,2777.1,10.452]
[1749606197941,16.38977951,2777.2,2777.1,10.452]
[1749606198358,10.59779955,2777.2,2777.1,9.457]
[1749606198636,10.59779955,2777.2,2775.5,0.11107147]
[1749606198637,1.128,2777.0,2775.5,0.11107147]
[1749606198842,9.46849955,2775.6,2775.5,0.11107147]
[1749606199159,15.09909955,2775.6,2775.5,0.11107147]
[1749606199358,16.60900951,2775.6,2775.5,0.11107147]
[1749606199556,15.09909955,2775.6,2775.5,1.17907147]
[1749606199734,5.0816,2775.6,2775.5,1.17907147]
[1749606200268,15.10009955,2775.6,2775.5,10.49707147]
[1749606200483,15.10009955,2775.6,2775.5,9.42907147]
[1749606200667,15.10009955,2775.6,2775.5,10.49707147]
[1749606200843,10.0,2776.5,2775.5,10.49707147]
[1749606200844,0.55,2776.3,2775.5,10.49707147]
[1749606201043,9.46849955,2776.0,2775.5,10.49707147]
[1749606201271,1.1199,2776.2,2775.5,12.55984367]
[1749606201470,3.878,2776.1,2775.5,12.14697862]
[1749606201776,6.89546324,2776.8,2775.6,10.0]
[1749606201983,5.0702,2776.7,2775.6,10.0]
[1749606202357,11.96566324,2776.7,2775.6,10.0]
[1749606202554,13.16222956,2776.7,2775.7,2.21469786]
[1749606202948,2.38676632,2776.7,2775.7,2.21469786]
[1749606203181,1.1902,2776.7,2775.7,2.21469786]
[1749606203387,3.877,2776.6,2775.8,10.6002]
[1749606203589,3.877,2776.6,2775.9,23.48271]
[1749606204078,3.877,2776.6,2776.0,10.0]
[1749606204455,3.877,2776.6,2775.9,23.48271]
[1749606204660,8.08566324,2777.5,2776.1,23.48271]
[1749606204845,3.876,2777.4,2776.1,23.48271]
[1749606205695,0.55,2777.4,2776.1,0.6002]
[1749606205993,8.08566324,2777.5,2776.3,10.0]
[1749606205994,3.873,2777.3,2776.3,10.0]
[1749606206187,3.873,2777.3,2776.4,1.068]
[1749606206387,3.873,2777.2,2776.5,23.48271]
[1749606206696,1.1902,2777.5,2776.7,0.6002]
[1749606206860,1.2124,2777.8,2776.7,0.6002]
[1749606207048,3.872,2777.7,2776.7,0.6002]
[1749606207445,10.76746324,2777.7,2776.7,0.6002]
[1749606207745,10.76746324,2777.7,2776.8,1.068]
[1749606207746,6.89546324,2777.4,2776.8,1.068]
[1749606209090,2.02718632,2777.8,2776.8,1.068]
[1749606209295,3.869,2777.7,2776.8,1.068]
[1749606209796,3.819,2777.7,2776.8,1.068]
[1749606210305,3.867,2777.6,2776.8,1.068]
[1749606212307,3.863,2777.5,2776.9,1.068]
[1749606212693,3.863,2777.5,2777.0,1.068]
[1749606212896,1.2124,2777.8,2777.0,1.068]
[1749606213067,0.04,2777.9,2777.0,1.068]
[1749606213068,0.04,2777.9,2777.1,23.48271]
[1749606213402,0.04,2777.9,2777.2,2.901371]
[1749606213697,3.901,2777.9,2777.3,9.321]
[1749606214286,3.901,2777.9,2776.7,3.60138089]
[1749606214287,6.89546324,2777.5,2777.4,10.389]
[1749606214977,1.1613,2777.7,2777.4,10.389]
[1749606215183,3.862,2777.6,2777.4,10.389]
[1749606216083,3.862,2777.5,2777.4,10.389]
[1749606216602,3.862,2777.5,2777.4,10.388]
[1749606217803,0.04,2777.9,2777.4,10.388]
[1749606218015,0.04,2777.9,2777.6,21.6943]
[1749606218197,0.04,2777.9,2777.7,10.0]
[1749606218709,0.04,2777.9,2777.6,0.4463]
[1749606218873,0.04,2777.9,2777.8,10.0]
[1749606219705,0.04,2777.9,2777.8,33.48271]
[1749606219906,0.04,2777.9,2777.8,35.70831501]